Cogmind - Beta 10.2 @@@ ROGUE MODE // 2021.12.09 @ 17:42:26 Player: DaddyWalrus Result: Destroyed by G-47 Trooper with Particle Gun Performance ------------- Evolutions (3) 1500 Regions Visited (7) 1400 Robots Destroyed (67) 335 Value Destroyed (2236) 2236 Prototype IDs (23) 460 Alien Tech Used (0) 0 Bonus (934) 934 TOTAL SCORE: 6865 Bonus ------- High Alert Combat Kills 256 Follower Combat Kills 224 Entered Garrisons 200 Aligned with FarCom 300 Friendly Fire -46 Cogmind --------- Core Integrity 0/700 Matter 295/300 Energy 290/290 System Corruption 0% Temperature Cool (9) Movement Walking (210) Ox3 Location -7/Garrison Parts ------- > --- POWER (1) -------- Improved Deuterium Engine > --- PROPULSION (4) --- Aluminum Leg Aluminum Leg Improved Carbon-fiber Leg > --- UTILITY (4) ------ High-capacity Storage Unit High-capacity Storage Unit High-capacity Storage Unit Microactuators > --- WEAPON (4) ------- Lance Lance Lance > --- INVENTORY (28) --- Light Nuclear Core High-capacity Matter Pod (200) Enhanced Optical Array Advanced Sensor Array Improved Signal Interpreter Long-range Terrain Scanner Advanced Terrain Scan Processor Improved Targeting Computer Layered Heavy Armor Plating Layered Heavy Armor Plating Layered Heavy Armor Plating Relay Coupler [NC] (29) Relay Coupler [Swarmer] (38) Relay Coupler [Brawler] (29) Relay Coupler [Sentry] (21) Relay Coupler [Hunter] (15) Chronowheel Latent Energy Streamer AWS/Autocannon Shock Bomb Launcher Rocket Launcher Missile Launcher Improved Datajack Peak State ------------ > --- POWER ------------ Reinforced Deuterium Engine > --- PROPULSION ------- Medium Treads Medium Treads Medium Treads Medium Treads > --- UTILITY ---------- Improved Heat Sink High-capacity Storage Unit High-capacity Storage Unit High-capacity Storage Unit > --- WEAPON ----------- Particle Gun Heavy Machine Gun Heavy Machine Gun Advanced Assault Cannon > --- INVENTORY -------- Reinforced Deuterium Engine Light Treads Light Treads Light Treads Wheel High-capacity Matter Pod Enhanced Optical Array Advanced Sensor Array Improved Signal Interpreter Advanced Terrain Scanner Long-range Terrain Scanner Advanced Terrain Scan Processor Targeting Computer Improved Targeting Computer Chronowheel Heavy EM Pulse Gun Particle Gun Latent Energy Streamer Assault Rifle Heavy Machine Gun AWS/Autocannon Shock Bomb Launcher Rocket Launcher Missile Launcher Improved Datajack Katana [Rating: 52] Favorites ----------- Power Ion Engine Engine Ion Engine Power Core Light Nuclear Core Propulsion Wheel Treads Medium Treads Leg Aluminum Leg Wheel Wheel Utility High-capacity Storage Unit Device Improved Heat Sink Storage High-capacity Storage Unit Processor Targeting Computer Protection Medium Armor Plating Weapon Assault Rifle Energy Gun Particle Gun Ballistic Gun Assault Rifle Ballistic Cannon Light Cannon Launcher Grenade Launcher Slashing Weapon Katana Piercing Weapon Lance Special Melee Weapon Improved Datajack Build | -11 -10 -10 -10 -9 -8 -7 -7 ------- Run | Scr Mat Min Exi Min Mat Fac Gar Slots Evolved 6 | . . . . . 4 2 . Power . | . . . . . . . . Propulsion 2 | . . . . . . 2 . Utility 2 | . . . . . 2 . . Weapon 2 | . . . . . 2 . . Parts Attached 89 | 6 13 3 4 1 21 5 36 Power 10 | 1 1 1 . . 5 . 2 Engine 9 | 1 1 1 . . 4 . 2 Core 1 | . . . . . 1 . . Reactor . | . . . . . . . . Propulsion 25 | 2 2 1 2 . 4 4 10 Treads 7 | . . . . . . 4 3 Leg 5 | . . . . . . . 5 Wheel 13 | 2 2 1 2 . 4 . 2 Hover . | . . . . . . . . Flight . | . . . . . . . . Utility 14 | 1 4 . 2 . 4 . 3 Device 2 | . . . . . . . 2 Storage 6 | 1 2 . 2 . 1 . . Processor 3 | . 2 . . . 1 . . Hackware . | . . . . . . . . Protection 3 | . . . . . 2 . 1 Artifact . | . . . . . . . . Weapon 40 | 2 6 1 . 1 8 1 21 Energy Gun 8 | 1 1 . . . 1 . 5 Energy Cannon . | . . . . . . . . Ballistic Gun 16 | 1 2 1 . 1 5 . 6 Ballistic Cannon 4 | . 2 . . . 1 1 . Launcher 3 | . 1 . . . 1 . 1 Special Weapon . | . . . . . . . . Impact Weapon . | . . . . . . . . Slashing Weapon 4 | . . . . . . . 4 Piercing Weapon 4 | . . . . . . . 4 Special Melee Weapon 1 | . . . . . . . 1 Unidentified Prototypes . | . . . . . . . . Parts Lost 26 | . 5 1 . . 3 . 17 Power 2 | . . . . . 2 . . Propulsion 11 | . 1 . . . 1 . 9 Utility 1 | . 1 . . . . . . Weapon 12 | . 3 1 . . . . 8 Highest Loss Streak 9 | . 3 1 . . 1 . 9 Average Slot Usage (%) 97 | . 94 100 100 100 100 99 94 Engine 10 | . 14 14 14 14 8 7 7 Treads 7 | . . . . . . 29 17 Leg 2 | . . . . . . . 9 Wheel 15 | . 26 28 28 28 18 . . Device 1 | . . . . . . . 6 Storage 24 | . 18 28 28 28 27 23 23 Processor 1 | . 6 . . . 1 . . Protection 2 | . . . . . 7 7 . Energy Gun 4 | . 9 2 . . 2 . 6 Ballistic Gun 16 | . 4 11 14 28 32 23 7 Ballistic Cannon 5 | . 10 14 14 . . 6 2 Slashing Weapon 1 | . . . . . . . 5 Piercing Weapon 1 | . . . . . . . 4 Naked Turns . | . . . . . . . . Heaviest Build 133 | 12 42 42 74 72 127 133 133 Greatest Support 112 | 26 26 26 26 20 26 112 112 Greatest Overweight (x) 11 | . 1 1 3 3 11 1 11 Average Overweight (x) 2 | . . 1 2 3 5 1 1 Largest Inventory Capacity 28 | 6 16 16 20 20 28 28 28 Average Capacity 22 | 5 9 16 19 20 27 28 28 Most Carried 28 | 4 15 16 20 20 28 28 28 Average Carried 21 | 2 6 15 17 20 26 27 27 Final Capacity 28 | 6 16 16 20 20 28 28 28 Final Carried 28 | 4 15 16 20 20 28 28 28 Class Distribution -------------------- 25% | Hauler-Mutant 24% | Mutant 16% | Scavenger-Skirmisher 10% | Scavenger-Mutant 10% | Hauler-Gunner 7% | Hauler-Tank 4% | Hauler-Skirmisher Dominant Class ---------------- Mutant | -10/Materials Mutant | -10/Mines Hauler-Mutant | -10/Exiles Hauler-Mutant | -9/Mines Scavenger-Skirmisher | -8/Materials Hauler-Tank | -7/Factory Hauler-Gunner | -7/Garrison Resources | -11 -10 -10 -10 -9 -8 -7 -7 ----------- Run | Scr Mat Min Exi Min Mat Fac Gar Matter Collected 2721 | 262 313 244 . 124 499 . 1279 Remotely . | . . . . . . . . Salvage Created 2350 | 57 577 244 . . 678 . 794 Parts 136 | 1 44 11 . . 42 . 38 Haulers Intercepted 1 | . . . . . 1 . . Recyclers Shooed 3 | . 1 1 . . 1 . . Parts Field Recycled . | . . . . . . . . Retrieved Matter . | . . . . . . . . Parts Self-Destructed . | . . . . . . . . Prevented . | . . . . . . . . Kills | -11 -10 -10 -10 -9 -8 -7 -7 ------- Run | Scr Mat Min Exi Min Mat Fac Gar Combat Hostiles Destroyed 51 | . 12 5 . . 12 . 22 Melee 4 | . . . . . . . 4 Guns 34 | . 6 4 . . 11 . 13 Cannons 11 | . 4 1 . . 1 . 5 AOE 2 | . 2 . . . . . . Classes Destroyed 13 | 1 4 1 . . 5 . 2 Worker 1 | . . 1 . . . . . Builder 4 | . 2 1 . . 1 . . Hauler 1 | . . . . . 1 . . Recycler 6 | 1 2 1 . . 2 . . Watcher 3 | . 3 . . . . . . Swarmer 14 | . 3 3 . . 5 . 3 Grunt 25 | . 9 2 . . 1 . 13 Duelist 3 | . . . . . 1 . 2 Sentry 5 | . . . . . 3 . 2 Specialist 1 | . . . . . . . 1 Hunter 2 | . . . . . 2 . . Behemoth 1 | . . . . . . . 1 Zionite 1 | . . . . . 1 . . Best Kill Streak 6 | 1 4 5 . . 4 . 6 Combat Bots Only 6 | . 3 5 . . 4 . 6 Max Kills in Single Turn 2 | 1 2 1 . . 2 . 1 Gunslinging 1 | . . . . . 1 . . Exploded 1 | . 1 . . . . . . Melee 1 | . . . . . . . 1 Uniques/NPCs Destroyed . | . . . . . . . . Combat | -11 -10 -10 -10 -9 -8 -7 -7 -------- Run | Scr Mat Min Exi Min Mat Fac Gar Damage Taken 5582 | . 548 116 . . 617 . 4301 Core 927 | . 83 39 . . 96 . 709 Absorbed by Shields 103 | . . . . . . . 103 Core Remaining (%) 77 | 100 . . . 51 82 . . Volleys Fired 178 | 2 51 17 . . 40 . 68 Largest 4 | 2 2 2 . . 4 . 4 Hottest 208 | 60 85 85 . . 115 . 208 Shots Fired 524 | 4 91 32 . . 156 . 241 Gun 436 | 4 63 15 . . 155 . 199 Cannon 77 | . 19 17 . . 1 . 40 Launcher 11 | . 9 . . . . . 2 Special . | . . . . . . . . Kinetic 406 | 2 56 27 . . 147 . 174 Thermal 76 | . 16 5 . . 9 . 46 Explosive 11 | . 9 . . . . . 2 Electromagnetic 31 | 2 10 . . . . . 19 Robot Hit Streak 34 | 2 8 6 . . 8 . 34 Robot Miss Streak 8 | 1 4 4 . . 8 . 4 Penetration Max . | . . . . . . . . Secondary Targets 9 | . 2 . . . 4 . 3 Max Gunslinging Chain 1 | . 1 . . . 1 . 1 Shots Hit Robots 358 | 2 59 15 . . 93 . 189 Core Hits 143 | 1 36 10 . . 35 . 61 Critical Hits 4 | . . . . . 2 . 2 Critical Kills . | . . . . . . . . Critical Parts Destroyed 3 | . . . . . 1 . 2 Melee Attacks 19 | . . . . . . . 19 Impact . | . . . . . . . . Slashing 11 | . . . . . . . 11 Piercing 8 | . . . . . . . 8 Sneak Attacks . | . . . . . . . . Combat Hostiles . | . . . . . . . . Follow-up Attacks 5 | . . . . . . . 5 Damage Inflicted 5946 | 30 967 234 . . 903 . 3812 Guns 4057 | 30 375 123 . . 855 . 2674 Cannons 838 | . 123 111 . . 15 . 589 Explosions 592 | . 469 . . . . . 123 Melee 426 | . . . . . . . 426 Ramming 33 | . . . . . 33 . . Kinetic 3881 | . 305 196 . . 823 . 2557 Thermal 840 | . 201 38 . . 47 . 554 Explosive 528 | . 405 . . . . . 123 Electromagnetic 238 | 30 56 . . . . . 152 Impact . | . . . . . . . . Slashing 256 | . . . . . . . 256 Piercing 170 | . . . . . . . 170 Highest Corruption . | . . . . . . . . Average Corruption . | . . . . . . . . Corruption Purged . | . . . . . . . . Overload Shots . | . . . . . . . . Overflow Damage 13 | . . . . . 13 . . Projectiles . | . . . . . . . . Explosions . | . . . . . . . . Melee 13 | . . . . . 13 . . Knockbacks 8 | . 2 2 . . 1 . 3 Impact 1 | . . . . . 1 . . Kinetic 7 | . 2 2 . . . . 3 Secondary . | . . . . . . . . Self-Inflicted Damage 50 | . 34 . . . 16 . . Shots 1 | . 1 . . . . . . Rammed 1 | . . . . . 1 . . Targets Rammed 1 | . . . . . 1 . . Kicked . | . . . . . . . . Crushed . | . . . . . . . . Highest Temperature 370 | 20 124 102 . . 81 . 370 Average Temperature 57 | 15 34 60 . . 23 . 84 Received Heat Transfer 1511 | . 225 33 . . 45 . 1208 Siege Activations . | . . . . . . . . Robots Corrupted . | . . . . . . . . Combat Hostiles . | . . . . . . . . Parts Fried . | . . . . . . . . Impact Corruptions 1 | . . . . . 1 . . Robots Melted . | . . . . . . . . Combat Hostiles . | . . . . . . . . Parts Melted 3 | . . . . . . . 3 Heat Transferred 1748 | . 457 111 . . 100 . 1080 Parts Sabotaged . | . . . . . . . . Parts Stolen . | . . . . . . . . Parts Stripped . | . . . . . . . . Power Chain Reactions 1 | . 1 . . . . . . Missiles Intercepted . | . . . . . . . . Alert | -11 -10 -10 -10 -9 -8 -7 -7 ------- Run | Scr Mat Min Exi Min Mat Fac Gar Peak Influence 1008 | 5 218 174 . . 316 43 1008 Initial 38 | . 3 19 . . . 29 38 Average 273 | . 109 147 . . 114 33 632 Maximum Alert Level 3 | . 1 . . . 1 . 3 Low Security (%) 61 | 100 91 100 . 100 74 100 7 Level 1 9 | . 8 . . . 25 . 5 Level 2 16 | . . . . . . . 49 Level 3 12 | . . . . . . . 37 Level 4 . | . . . . . . . . Level 5 . | . . . . . . . . High Security . | . . . . . . . . Max Security . | . . . . . . . . Squads Dispatched 3 | . 2 . . . 1 . . Investigation 2 | . 1 . . . 1 . . Extermination . | . . . . . . . . Reinforcement 1 | . 1 . . . . . . Assault . | . . . . . . . . Garrison . | . . . . . . . . Intercept . | . . . . . . . . Construction Impeded . | . . . . . . . . Haulers Reinforced . | . . . . . . . . Stealth | -11 -10 -10 -10 -9 -8 -7 -7 --------- Run | Scr Mat Min Exi Min Mat Fac Gar Distress Signals 5 | . . 1 . . 4 . . Communications Jammed . | . . . . . . . . Distress Signals . | . . . . . . . . Times Spotted 86 | . 23 6 . . 25 . 32 Peak Tracking Total 10 | . 4 5 . . 6 . 10 Tactical Retreats 12 | . 2 1 . . 1 . 8 Traps | -11 -10 -10 -10 -9 -8 -7 -7 ------- Run | Scr Mat Min Exi Min Mat Fac Gar Traps Triggered 12 | . . . . . 1 . 11 Indirectly . | . . . . . . . . Trap Hack Attempts . | . . . . . . . . Triggered . | . . . . . . . . Disarmed . | . . . . . . . . Reprogrammed . | . . . . . . . . Reused . | . . . . . . . . Traps Extracted . | . . . . . . . . Installed . | . . . . . . . . Triggered . | . . . . . . . . Machines | -11 -10 -10 -10 -9 -8 -7 -7 ---------- Run | Scr Mat Min Exi Min Mat Fac Gar Machines Disabled 6 | . 5 . . . . . 1 Max in Single Turn 2 | . 2 . . . . . 1 Garrison Relay 1 | . . . . . . . 1 Machines Sabotaged . | . . . . . . . . Garrisons Compromised . | . . . . . . . . Overloaded Fab Kills . | . . . . . . . . Fab Network Shutdowns . | . . . . . . . . Hacking | -11 -10 -10 -10 -9 -8 -7 -7 --------- Run | Scr Mat Min Exi Min Mat Fac Gar Machines Accessed 14 | . 7 . 2 . 3 2 . Terminals 10 | . 6 . . . 3 1 . Fabricators . | . . . . . . . . Repair Stations . | . . . . . . . . Recycling Units 1 | . 1 . . . . . . Scanalyzers . | . . . . . . . . Garrison Access 1 | . . . . . . 1 . Total Hacks 40 | . 20 . 5 . 11 4 . Successful 26 | . 12 . 5 . 7 2 . Failed 14 | . 8 . . . 4 2 . Catastrophic 4 | . 1 . . . 2 1 . Database Lockouts . | . . . . . . . . Manual 30 | . 19 . 1 . 8 2 . Terminals 31 | . 17 . . . 11 3 . Fabricators . | . . . . . . . . Repair Stations . | . . . . . . . . Recycling Units 3 | . 3 . . . . . . Scanalyzers . | . . . . . . . . Garrison Access 1 | . . . . . . 1 . Terminal Hacks 13 | . 4 . 5 . 4 . . Record 4 | . . . 4 . . . . Part Schematic 1 | . 1 . . . . . . Robot Analysis 1 | . . . . . 1 . . Branch Access Points 2 | . 1 . . . 1 . . Alert Level 1 | . 1 . . . . . . Unreport Threat 3 | . 1 . . . 2 . . EX-Prototype ID Bank 1 | . . . 1 . . . . Fabricator Hacks . | . . . . . . . . Repair Station Hacks . | . . . . . . . . Recycling Unit Hacks 3 | . 3 . . . . . . Report Inventory 2 | . 2 . . . . . . Retrieve Components 1 | . 1 . . . . . . Scanalyzer . | . . . . . . . . Garrison Access Hacks 1 | . . . . . . 1 . Unlock Access 1 | . . . . . . 1 . Unauthorized Hacks 9 | . 5 . . . 3 1 . Terminals 9 | . 5 . . . 3 1 . Botnet 9 | . 5 . . . 3 1 . Fabricators . | . . . . . . . . Repair Stations . | . . . . . . . . Recycling Units . | . . . . . . . . Scanalyzers . | . . . . . . . . Garrison Access . | . . . . . . . . Data Cores Recovered . | . . . . . . . . Used . | . . . . . . . . Hacking Detections 9 | . 6 . . . 2 1 . Full Trace Events 5 | . 5 . . . . . . Feedback Events . | . . . . . . . . Feedback Blocked . | . . . . . . . . Robot Schematics Acquired . | . . . . . . . . Robots Built . | . . . . . . . . Matter . | . . . . . . . . Time . | . . . . . . . . Total Robot Build Rating . | . . . . . . . . Part Schematics Acquired 1 | . 1 . . . . . . Parts Built . | . . . . . . . . Matter . | . . . . . . . . Time . | . . . . . . . . Total Part Build Rating . | . . . . . . . . Parts Repaired . | . . . . . . . . Time . | . . . . . . . . Parts Recycled . | . . . . . . . . Recycled Matter . | . . . . . . . . Retrieved Matter . | . . . . . . . . Retrieved Components 2 | . 2 . . . . . . Parts Scanalyzed . | . . . . . . . . Part Schematics Acquired . | . . . . . . . . Parts Damaged . | . . . . . . . . Bothacking | -11 -10 -10 -10 -9 -8 -7 -7 ------------ Run | Scr Mat Min Exi Min Mat Fac Gar Used RIF Installer . | . . . . . . . . Robots Hacked . | . . . . . . . . Non-combat . | . . . . . . . . Combat . | . . . . . . . . Robot Hacks Applied . | . . . . . . . . Relay Couplers Released 5 | . . . . . . . 5 Machine Destruction 5 | . . . . . . . 5 Robots Rewired . | . . . . . . . . Allies Hacked . | . . . . . . . . Hacks Repelled . | . . . . . . . . Allies | -11 -10 -10 -10 -9 -8 -7 -7 -------- Run | Scr Mat Min Exi Min Mat Fac Gar Total Allies 6 | . . . . 6 . . . Largest Group 6 | . . . . 6 5 . . Highest-Rated Group 112 | . . . . 112 81 . . Highest-Rated Ally 31 | . . . . 31 31 . . Total Orders . | . . . . . . . . Ally Attacks 72 | . . . . . 72 . . Total Damage 759 | . . . . . 759 . . Kills 12 | . . . . . 12 . . Allies Corrupted . | . . . . . . . . Allies Melted . | . . . . . . . . Intel | -11 -10 -10 -10 -9 -8 -7 -7 ------- Run | Scr Mat Min Exi Min Mat Fac Gar Robot Analysis Total 1 | . . . . . 1 . . Derelict Logs Recovered 2 | . . . . 2 . . . Drone Launches . | . . . . . . . . Drone Recoveries . | . . . . . . . . Exploration | -11 -10 -10 -10 -9 -8 -7 -7 ------------- Run | Scr Mat Min Exi Min Mat Fac Gar Turns Passed 5525 | 61 859 394 634 453 1183 298 1643 Spaces Moved 3622 | 47 710 335 578 396 736 157 663 Core 1 | 1 . . . . . . . Treads 551 | . . . . . . 157 394 Legs 267 | . . . . . . . 267 Wheels 2803 | 46 710 335 578 396 736 . 2 Hover . | . . . . . . . . Flight . | . . . . . . . . Fastest Speed 50 | 50 80 100 100 110 130 180 180 Average Speed 127 | 91 93 100 107 110 130 180 190 Slowest Speed 450 | 100 100 100 110 110 190 180 450 Overloaded Moves . | . . . . . . . . Propulsion Burnouts . | . . . . . . . . Robots Hopped . | . . . . . . . . Cave-ins Triggered . | . . . . . . . . Exploration Rate (%) 56 | 4 80 63 90 91 59 5 61 Regions Visited 7 Branch Regions 3 Pre-discovered Areas 1 | . . . 1 . . . . Known Exits Taken 3 | . 1 . . . 1 1 . Unknown Exits Taken 4 | 1 . 1 1 1 . . . Scrap Searched 3 | . . . . 3 . . . Spaces Dug . | . . . . . . . . Terrain Destroyed 78 | . 51 . . . . . 27 Melee . | . . . . . . . . Projectile 3 | . . . . . . . 3 AOE 75 | . 51 . . . . . 24 Terrain Rammed . | . . . . . . . . Walls Destroyed . | . . . . . . . . Machines Disabled . | . . . . . . . . Actions | -11 -10 -10 -10 -9 -8 -7 -7 --------- Run | Scr Mat Min Exi Min Mat Fac Gar Total 4166 | 58 823 363 590 413 882 174 863 Wait 89 | . 25 1 . 15 26 . 22 Move 3616 | 46 709 334 577 395 735 157 663 Hop . | . . . . . . . . Pick Up 78 | 4 16 4 4 1 31 6 12 Fast Attach 31 | 6 7 . . . 4 1 13 Attach 27 | . 1 1 1 . 8 4 12 Detach 10 | . 1 . 1 . 2 1 5 Swap 31 | . 5 2 3 1 9 . 11 Drop 64 | . 8 4 4 1 26 5 16 Fire 178 | 2 51 17 . . 40 . 68 Melee 14 | . . . . . . . 14 Ram 1 | . . . . . 1 . . Kick . | . . . . . . . . Crush . | . . . . . . . . Escape Stasis 27 | . . . . . . . 27 Rewire . | . . . . . . . . Trap . | . . . . . . . . Miscellaneous . | . . . . . . . . Route ------- -11/Scrapyard -10/Materials (discovered 4 exits: [*Mat x2] / *Min x2) -10/Mines -10/Exiles -9/Mines -8/Materials (discovered 3 exits: *Fac x3) -7/Factory (discovered 2 exits: [*Sto] / Gar) -7/Garrison (discovered 2 exits: [*Fac x2]) History --------- Turn | Location | Event 17 | -11/Scrapyard | Discovered new exit (range 13) 62 | -11/Scrapyard | Entered Materials 86 | -10/Materials | Discovered new exit (range 16) 251 | -10/Materials | Discovered new exit (range 8) 257 | -10/Materials | Lost 3 parts (1n2w) 328 | -10/Materials | Build established: Mutant 683 | -10/Materials | Discovered new exit (range 15) 734 | -10/Materials | Identified exit to Mines 807 | -10/Materials | Discovered new exit (range 7) 921 | -10/Materials | Entered Mines 1109 | -10/Mines | Received a Rocket Launcher from a helpful Derelict 1310 | -10/Mines | Deemed a non-threat by the Exiles lab entrance 1311 | -10/Mines | Discovered new exit (range 5) 1315 | -10/Mines | Entered Exiles 1340 | -10/Exiles | Met 8R-AWN 1356 | -10/Exiles | Met EX-HEX 1396 | -10/Exiles | Met EX-DEC 1400 | -10/Exiles | Learned location of Zion (-6) 1461 | -10/Exiles | Discovered new exit (range 11) 1536 | -10/Exiles | Visited The Gauntlet 1677 | -10/Exiles | Met EX-BIN 1692 | -10/Exiles | Aligned with FarCom system 1693 | -10/Exiles | Given EX-Vault access code 1725 | -10/Exiles | Build established: Hauler-Mutant 1735 | -10/Exiles | Opened EX-Vault 1748 | -10/Exiles | Found Chronowheel 1754 | -10/Exiles | Found Latent Energy Streamer 1760 | -10/Exiles | Found AWS/Autocannon 1782 | -10/Exiles | Warned to stay clear of 0b10 Research branches 1949 | -10/Exiles | Stole three prototypes: Chronowheel, Latent Energy Streamer, AWS/Autocannon 1949 | -10/Exiles | Entered Mines 1952 | -9/Mines | Received a Mining Laser from a helpful Derelict 2035 | -9/Mines | Assisted by bots powering up and referring to "LRC-V3" 2109 | -9/Mines | Learned Materials emergency access door positions 2246 | -9/Mines | Learned location of 1 exit from Materials 2376 | -9/Mines | Discovered new exit (range 12) 2402 | -9/Mines | Entered Materials 2402 | -8/Materials | Accompanied by 5 allies 2402 | -8/Materials | Evolved 4 slots: Utility x2, Weapon x2 2403 | -8/Materials | Identified exit to Factory 2407 | -8/Materials | Led the pair of lost Derelicts to an unsafe place 2814 | -8/Materials | Discovered exit to Factory (range 15) 2897 | -8/Materials | Build established: Scavenger-Skirmisher 3438 | -8/Materials | Discovered exit to Factory (range 8) 3585 | -8/Materials | Entered Factory 3585 | -7/Factory | Evolved 2 slots: Propulsion x2 3587 | -7/Factory | FarCom data flow suspended 3707 | -7/Factory | Discovered new exit (range 14) 3883 | -7/Factory | Identified exit to Garrison 3883 | -7/Factory | Entered Garrison 3891 | -7/Garrison | Build established: Hauler-Tank 4082 | -7/Garrison | Triggered checkpoint 4164 | -7/Garrison | Triggered checkpoint 4271 | -7/Garrison | Discovered new exit (range 9) 4295 | -7/Garrison | Build established: Hauler-Gunner 4372 | -7/Garrison | Triggered checkpoint 4488 | -7/Garrison | Spotted B-75 Beast 4571 | -7/Garrison | Lost 5 parts (3n2w) 4576 | -7/Garrison | Core integrity fell below 50% 4581 | -7/Garrison | Destroyed B-75 Beast 4792 | -7/Garrison | Build established: Hauler-Mutant 4911 | -7/Garrison | Core integrity fell below 20% 4916 | -7/Garrison | Lost 9 parts (4n5w) 5024 | -7/Garrison | Discovered new exit (range 12) 5116 | -7/Garrison | Triggered checkpoint 5146 | -7/Garrison | Garrison Relay disabled 5243 | -7/Garrison | Build established: Scavenger-Mutant 5526 | -7/Garrison | Destroyed by G-47 Trooper with Particle Gun Last Messages --------------- Garrison Door activated. 05469_ Triggered Stasis Trap. 05469_ A bubble of rippling energy engulfs the area. 05469_ Field strength at 85. 05471_ Field strength at 66. 05472_ Field strength at 47. 05473_ Field strength at 32. 05474_ Field strength at 17. 05475_ Field strength at 2. 05475_ Stasis field depleted. 05479_ Katana destroyed. 05485_ Aluminum Leg destroyed. 05500_ ALERT: Garrison interior compromised. 05506_ G-47 Trooper destroyed. 05508_ Acquired 41 matter. 05510_ Lance follow-up attack on G-47 Trooper. 05510_ G-47 Trooper destroyed. 05512_ Acquired 13 matter. 05516_ Acquired Aluminum Leg. 05524_ Aluminum Leg destroyed. Map ----- +----------------------------------------------------+ | ??????????????#### ######^ /#?????????????????? | | ??????????????# + +^ #?????????????????? | | ??????????????# + #?????????????????? | | ??######??????#### ######^ !#?????????????????? | | ??# #?????????# #????#| !#?????????????????? | | ??# < #?????????# #????#||| !#?????????????????? | | ??# #?????????# #????#######?????????????????? | | ??### #?????????# #????????????????????????????? | | ????# #?????????# #????????????????????????????? | | ????# #?????????# #????????????????????????????? | | ????# #?????????# #????????????????????????????? | | ????# ####??????# #????????????????????????????? | | ????# ## ######## ###########??????????????????? | | ????# ! * #??????????????????? | | ????# #??????????????????? | | ????######## ##### ######## #??????????????????? | | ???????????# #???# #??????# #??????????????????? | | ???????????# #???# #??????# #??????????????????? | | ???????????# #???# #??????# #??????????????????? | | ############ #???# #??????# #??????????????????? | | #???# #??????# #??####???#????????? | | ##### ########???# #??????# #? #?? #????????? | | ???## ##?????????# #?????## ## ## ##???????? | | ???#! [#?????????# ####### ^ #???????? | | ???#![ #?????????# * = ^ #???????? | | ???#! #?????????# %!* @g #???????? | | ???#####?????????########## ## ## ^#???????? | | ????????????????????????### ## ##^^^#???????? | | ????????????????????????# #?????? | | ????????????????????????# #?????? | | ????????????????????????# #?????? | | ????????????????????????# #?????? | | ????????????????????????### ## ## ###?????? | | ????????????????###########= ## ## ######### | | ????????????????#!*= [ ! =* | | ????????????????#= **! ! *=[ | | ????????????????# ###+#### = #?????# | | ????????????????#[=#??????## ## ## ##?????# | | ????????????????#* #???????# ## ## #??????# | | ????????????????#/ #???????# ######## #??????# | | ????????????????# #???????# #??????# #??????# | | ????????????????# #???????# #??????# #??????# | | ????????????????# #???????# #??????# #??????# | | ???????########## ######### #??????# #??????# | | ???????# ^ #??????# ######## | | ???????# #??????# [ ! | | ???????# ####### #############??????# * = | | ???????# #?????# #??????????????????########+## | | ???????# #?????# #?????????????????????????# ?# | | ???????# #?????# #?????????????????????????#??# | +----------------------------------------------------+ Best States ------------- Heat Dissipation 48 Energy Generation 18 Energy Capacity 290 Matter Stores 300 Matter Capacity 300 Sight Range 16 Terrain Scan Density 10 Armor Coverage 225 Core Shielding 20 Melee Speed Boost 20 Evasion (%) 44 Targeting Accuracy 5 Recoil Reduction 4 Item Schematics ----------------- Hcp. Storage Unit | -10/Materials | Hacked Robot Schematics ------------------ None Fabricated ------------ Nothing Alien Tech Used ----------------- None Achievements -------------- None Challenges ------------ None Game ------ Seed ScanNeutralizingBeamcaster Manual? 0 Play Time 00:57:44 Cumulative 91.3 hours Start 2021.12.09 @ 16:36:35 End 2021.12.09 @ 17:42:26 Sessions 1 Manual Loads 0 Difficulty Rogue Special Mode None Game No. 31 Rogue 31 Adventurer 0 Explorer 0 Win Type - Total 1 Types 1/0/0/0/0/0/0/0/0 Lore% 40 Gallery% 55 Achievement% 42 Wizard Run 0 Options --------- ASCII 1 Keyboard 1 Movement Numpad Keybinds 0 Fullscreen 1 Font 36/Smallcaps Map View 76x50 Tactical HUD 1 Map Filters NONE Filters NONE Steam 1 RUN: fd783deb-3409-4653-a1be-13558145a5e6